[Event "Titled Tuesday Blitz June 28 Early 2022"]
[White "Ibarra Jerez, Jose Carlos"]
[Black "Le, Quang Liem"]
[WhiteFideId "2226332"]
[BlackFideId "12401137"]
[WhiteElo "2628"]
[BlackElo "2657"]
[Result "1/2-1/2"]
[Round "07"]
[TimeControl "180+1"]
[Date "2022.06.28"]
[WhiteClock "0:00:19"]
[BlackClock "0:00:27"]

1. e4 {[%clk 0:03:00]}  c5 {[%clk 0:02:59]} 2. Nc3 {[%clk 0:03:00]}  Nc6 {[%clk 0:02:54]} 3. Nf3 {[%clk 0:02:59]}  e6 {[%clk 0:02:54]} 4. d4 {[%clk 0:03:00]}  cxd4 {[%clk 0:02:55]} 5. Nxd4 {[%clk 0:03:00]}  Qc7 {[%clk 0:02:55]} 6. g3 {[%clk 0:03:01]}  a6 {[%clk 0:02:54]} 7. Bg2 {[%clk 0:03:01]}  Nf6 {[%clk 0:02:54]} 8. O-O {[%clk 0:03:02]}  h5 {[%clk 0:02:50]} 9. h3 {[%clk 0:02:40]}  Nxd4 {[%clk 0:02:39]} 10. Qxd4 {[%clk 0:02:38]}  Bc5 {[%clk 0:02:39]} 11. Bf4 {[%clk 0:02:35]}  d6 {[%clk 0:02:39]} 12. Qd2 {[%clk 0:02:31]}  e5 {[%clk 0:02:38]} 13. Bg5 {[%clk 0:02:30]}  Be6 {[%clk 0:02:38]} 14. Rad1 {[%clk 0:02:09]}  b5 {[%clk 0:02:33]} 15. a3 {[%clk 0:01:54]}  Rd8 {[%clk 0:02:29]} 16. Nd5 {[%clk 0:01:36]}  Bxd5 {[%clk 0:02:28]} 17. exd5 {[%clk 0:01:21]}  Rc8 {[%clk 0:02:25]} 18. c3 {[%clk 0:01:19]}  Nh7 {[%clk 0:02:22]} 19. Bf3 {[%clk 0:01:08]}  Nxg5 {[%clk 0:02:18]} 20. Qxg5 {[%clk 0:01:08]}  g6 {[%clk 0:02:19]} 21. Kg2 {[%clk 0:01:08]}  Qe7 {[%clk 0:02:19]} 22. Qd2 {[%clk 0:01:01]}  e4 {[%clk 0:02:05]} 23. Rfe1 {[%clk 0:00:44]}  f5 {[%clk 0:02:06]} 24. Be2 {[%clk 0:00:35]}  h4 {[%clk 0:02:05]} 25. g4 {[%clk 0:00:33]}  Kf7 {[%clk 0:01:42]} 26. f4 {[%clk 0:00:32]}  Bb6 {[%clk 0:01:29]} 27. Rf1 {[%clk 0:00:32]}  Kg7 {[%clk 0:01:01]} 28. Ra1 {[%clk 0:00:31]}  Rhf8 {[%clk 0:00:56]} 29. a4 {[%clk 0:00:28]}  b4 {[%clk 0:00:49]} 30. Bxa6 {[%clk 0:00:25]}  bxc3 {[%clk 0:00:48]} 31. bxc3 {[%clk 0:00:26]}  Rc5 {[%clk 0:00:45]} 32. Rab1 {[%clk 0:00:20]}  Qa7 {[%clk 0:00:39]} 33. Qd4+ {[%clk 0:00:20]}  Kh7 {[%clk 0:00:39]} 34. a5 {[%clk 0:00:19]}  Bxa5 {[%clk 0:00:37]} 35. Rb7+ {[%clk 0:00:19]}  Qxb7 {[%clk 0:00:38]} 36. Bxb7 {[%clk 0:00:19]}  Bxc3 {[%clk 0:00:38]} 37. Qa4 {[%clk 0:00:19]}  Rf7 {[%clk 0:00:33]} 38. Bc6 {[%clk 0:00:18]}  Bg7 {[%clk 0:00:33]} 39. Rf2 {[%clk 0:00:17]}  e3 {[%clk 0:00:32]} 40. Re2 {[%clk 0:00:18]}  Re7 {[%clk 0:00:32]} 41. gxf5 {[%clk 0:00:18]}  gxf5 {[%clk 0:00:32]} 42. Qa8 {[%clk 0:00:18]}  Rc4 {[%clk 0:00:26]} 43. Kf3 {[%clk 0:00:17]}  Bh6 {[%clk 0:00:25]} 44. Rxe3 {[%clk 0:00:13]}  Rxf4+ {[%clk 0:00:25]} 45. Ke2 {[%clk 0:00:14]}  Rxe3+ {[%clk 0:00:25]} 46. Kxe3 {[%clk 0:00:13]}  Ra4+ {[%clk 0:00:24]} 47. Kf3 {[%clk 0:00:14]}  Rxa8 {[%clk 0:00:25]} 48. Bxa8 {[%clk 0:00:14]}  Kg6 {[%clk 0:00:25]} 49. Bc6 {[%clk 0:00:15]}  Kf6 {[%clk 0:00:26]} 50. Bd7 {[%clk 0:00:15]}  Ke5 {[%clk 0:00:27]} 51. Be6 {[%clk 0:00:15]}  Bg5 {[%clk 0:00:26]} 52. Bg8 {[%clk 0:00:15]}  Kd4 {[%clk 0:00:26]} 53. Be6 {[%clk 0:00:16]}  Ke5 {[%clk 0:00:24]} 54. Bg8 {[%clk 0:00:16]}  Bd2 {[%clk 0:00:23]} 55. Be6 {[%clk 0:00:16]}  f4 {[%clk 0:00:23]} 56. Bg8 {[%clk 0:00:17]}  Be1 {[%clk 0:00:24]} 57. Be6 {[%clk 0:00:17]}  Bg3 {[%clk 0:00:25]} 58. Bg8 {[%clk 0:00:18]}  Kd4 {[%clk 0:00:25]} 59. Be6 {[%clk 0:00:18]}  Kd3 {[%clk 0:00:26]} 60. Bg8 {[%clk 0:00:17]}  Kd2 {[%clk 0:00:27]} 61. Be6 {[%clk 0:00:18]}  Ke1 {[%clk 0:00:28]} 62. Bg8 {[%clk 0:00:18]}  Kf1 {[%clk 0:00:28]} 63. Be6 {[%clk 0:00:19]}  Kg1 {[%clk 0:00:28]} 64. Bg4 {[%clk 0:00:19]}  Kh2 {[%clk 0:00:27]} 65. Be6 {[%clk 0:00:19]} 1/2-1/2


[Site "https://www.chess.com"]

[Event "Titled Tuesday Blitz June 28 Early 2022"]
[White "Iinuma, Paul Y"]
[Black "Carrasco Miranda, Andres"]
[WhiteFideId "2031809"]
[BlackFideId "3405990"]
[WhiteElo "2052"]
[BlackElo "2177"]
[Result "0-1"]
[Round "07"]
[TimeControl "180+1"]
[Date "2022.06.28"]
[WhiteClock "0:00:05"]
[BlackClock "0:00:17"]

1. d4 {[%clk 0:03:00]}  Nf6 {[%clk 0:02:56]} 2. Nf3 {[%clk 0:02:53]}  g6 {[%clk 0:02:56]} 3. c4 {[%clk 0:02:48]}  Bg7 {[%clk 0:02:55]} 4. Nc3 {[%clk 0:02:48]}  d5 {[%clk 0:02:55]} 5. cxd5 {[%clk 0:02:42]}  Nxd5 {[%clk 0:02:56]} 6. e4 {[%clk 0:02:31]}  Nxc3 {[%clk 0:02:54]} 7. bxc3 {[%clk 0:02:32]}  c5 {[%clk 0:02:54]} 8. Rb1 {[%clk 0:02:32]}  O-O {[%clk 0:02:53]} 9. Be2 {[%clk 0:02:29]}  cxd4 {[%clk 0:02:53]} 10. cxd4 {[%clk 0:02:29]}  Qa5+ {[%clk 0:02:53]} 11. Bd2 {[%clk 0:02:28]}  Qxa2 {[%clk 0:02:53]} 12. O-O {[%clk 0:02:16]}  Bg4 {[%clk 0:02:51]} 13. Rxb7 {[%clk 0:01:27]}  Bxf3 {[%clk 0:02:44]} 14. Bxf3 {[%clk 0:01:27]}  Bxd4 {[%clk 0:02:42]} 15. Bh6 {[%clk 0:01:12]}  Rd8 {[%clk 0:02:39]} 16. Qc1 {[%clk 0:00:52]}  Nd7 {[%clk 0:02:15]} 17. Rc7 {[%clk 0:00:42]}  a5 {[%clk 0:02:04]} 18. e5 {[%clk 0:00:42]}  Rab8 {[%clk 0:01:38]} 19. e6 {[%clk 0:00:16]}  Qxe6 {[%clk 0:01:36]} 20. Re1 {[%clk 0:00:15]}  Ne5 {[%clk 0:01:18]} 21. Be4 {[%clk 0:00:15]}  a4 {[%clk 0:01:02]} 22. Qa3 {[%clk 0:00:09]}  Bxf2+ {[%clk 0:00:25]} 23. Kxf2 {[%clk 0:00:08]}  Qb6+ {[%clk 0:00:26]} 24. Qc5 {[%clk 0:00:04]}  Ng4+ {[%clk 0:00:26]} 25. Kg3 {[%clk 0:00:04]}  Qxc5 {[%clk 0:00:25]} 26. Rxc5 {[%clk 0:00:05]}  Nxh6 {[%clk 0:00:25]} 27. Ra1 {[%clk 0:00:04]}  Rb3+ {[%clk 0:00:23]} 28. Bf3 {[%clk 0:00:04]}  Nf5+ {[%clk 0:00:22]} 29. Kh3 {[%clk 0:00:05]}  a3 {[%clk 0:00:21]} 30. Ra5 {[%clk 0:00:05]}  Rdd3 {[%clk 0:00:21]} 31. Ra8+ {[%clk 0:00:03]}  Kg7 {[%clk 0:00:21]} 32. Kg4 {[%clk 0:00:03]}  h5+ {[%clk 0:00:20]} 33. Kh3 {[%clk 0:00:03]}  e5 {[%clk 0:00:20]} 34. g3 {[%clk 0:00:01]}  Rxf3 {[%clk 0:00:20]} 35. Ra4 {[%clk 0:00:01]}  h4 {[%clk 0:00:20]} 36. Kg2 {[%clk 0:00:02]}  hxg3 {[%clk 0:00:20]} 37. hxg3 {[%clk 0:00:02]}  Rxg3+ {[%clk 0:00:21]} 38. Kf2 {[%clk 0:00:03]}  Rbf3+ {[%clk 0:00:21]} 39. Ke2 {[%clk 0:00:03]}  Nd4+ {[%clk 0:00:21]} 40. Kd2 {[%clk 0:00:04]}  Rf2+ {[%clk 0:00:21]} 41. Ke1 {[%clk 0:00:04]}  Re2+ {[%clk 0:00:21]} 42. Kf1 {[%clk 0:00:05]}  Rf3+ {[%clk 0:00:21]} 43. Kg1 {[%clk 0:00:05]}  Rb3 {[%clk 0:00:21]} 44. R4xa3 {[%clk 0:00:04]}  Rxa3 {[%clk 0:00:19]} 45. Rxa3 {[%clk 0:00:05]}  f5 {[%clk 0:00:18]} 46. Kf1 {[%clk 0:00:05]}  Rc2 {[%clk 0:00:17]} 47. Ra7+ {[%clk 0:00:06]}  Kf6 {[%clk 0:00:17]} 48. Ra6+ {[%clk 0:00:07]}  Kg5 {[%clk 0:00:18]} 49. Ra8 {[%clk 0:00:08]}  e4 {[%clk 0:00:18]} 50. Rh8 {[%clk 0:00:09]}  e3 {[%clk 0:00:17]} 51. Ke1 {[%clk 0:00:08]}  f4 {[%clk 0:00:17]} 52. Kf1 {[%clk 0:00:08]}  f3 {[%clk 0:00:17]} 53. Ke1 {[%clk 0:00:05]}  Rc1# {[%clk 0:00:17]} 0-1


[Site "https://www.chess.com"]

[Event "Titled Tuesday Blitz June 28 Early 2022"]
[White "Ismagilov, Damir"]
[Black "Jubin Jimmy"]
[WhiteFideId "34199982"]
[BlackFideId "46686614"]
[WhiteElo "2138"]
[BlackElo "2219"]
[Result "1-0"]
[Round "07"]
[TimeControl "180+1"]
[Date "2022.06.28"]
[WhiteClock "0:00:49"]
[BlackClock "0:01:10"]

1. d4 {[%clk 0:03:00]}  Nf6 {[%clk 0:03:00]} 2. c4 {[%clk 0:03:01]}  e6 {[%clk 0:03:00]} 3. Nf3 {[%clk 0:03:01]}  Bb4+ {[%clk 0:03:00]} 4. Nbd2 {[%clk 0:03:01]}  b6 {[%clk 0:02:59]} 5. a3 {[%clk 0:03:01]}  Bxd2+ {[%clk 0:02:59]} 6. Qxd2 {[%clk 0:03:02]}  Bb7 {[%clk 0:02:59]} 7. e3 {[%clk 0:03:02]}  d6 {[%clk 0:03:00]} 8. Be2 {[%clk 0:03:02]}  Nbd7 {[%clk 0:03:00]} 9. O-O {[%clk 0:03:03]}  O-O {[%clk 0:03:00]} 10. b4 {[%clk 0:03:03]}  Ne4 {[%clk 0:03:01]} 11. Qc2 {[%clk 0:03:03]}  f5 {[%clk 0:03:01]} 12. Bb2 {[%clk 0:03:00]}  Qe8 {[%clk 0:03:02]} 13. Rad1 {[%clk 0:02:36]}  Qg6 {[%clk 0:02:59]} 14. d5 {[%clk 0:02:36]}  e5 {[%clk 0:02:58]} 15. Nd2 {[%clk 0:02:29]}  Nxd2 {[%clk 0:02:56]} 16. Rxd2 {[%clk 0:02:29]}  Qg5 {[%clk 0:02:53]} 17. f4 {[%clk 0:02:21]}  Qh6 {[%clk 0:02:52]} 18. Bd3 {[%clk 0:02:18]}  g6 {[%clk 0:02:51]} 19. Qc3 {[%clk 0:02:17]}  Rae8 {[%clk 0:02:49]} 20. Rdf2 {[%clk 0:02:09]}  Re7 {[%clk 0:02:40]} 21. e4 {[%clk 0:02:04]}  fxe4 {[%clk 0:02:38]} 22. Bxe4 {[%clk 0:02:01]}  Ref7 {[%clk 0:02:27]} 23. f5 {[%clk 0:01:56]}  gxf5 {[%clk 0:02:22]} 24. Bxf5 {[%clk 0:01:56]}  Rxf5 {[%clk 0:02:09]} 25. Rxf5 {[%clk 0:01:54]}  Rxf5 {[%clk 0:02:06]} 26. Rxf5 {[%clk 0:01:55]}  b5 {[%clk 0:02:01]} 27. Bc1 {[%clk 0:01:51]}  Qh4 {[%clk 0:01:54]} 28. h3 {[%clk 0:01:05]}  bxc4 {[%clk 0:01:42]} 29. Rg5+ {[%clk 0:01:00]}  Kh8 {[%clk 0:01:32]} 30. Rg4 {[%clk 0:00:58]}  Qe7 {[%clk 0:01:28]} 31. Bh6 {[%clk 0:00:51]}  Bxd5 {[%clk 0:01:20]} 32. Qg3 {[%clk 0:00:50]}  Be6 {[%clk 0:01:10]} 33. Bg7+ {[%clk 0:00:49]}  Kg8 {[%clk 0:01:10]} 34. Bf6+ {[%clk 0:00:49]} 1-0


[Site "https://www.chess.com"]

[Event "Titled Tuesday Blitz June 28 Early 2022"]
[White "Jaskolka, Tomasz"]
[Black "Jiganchine, Roman"]
[WhiteFideId "1170791"]
[BlackFideId "2603667"]
[WhiteElo "2073"]
[BlackElo "2290"]
[Result "1/2-1/2"]
[Round "07"]
[TimeControl "180+1"]
[Date "2022.06.28"]
[WhiteClock "0:01:02"]
[BlackClock "0:00:19"]

1. d4 {[%clk 0:03:00]}  d5 {[%clk 0:02:58]} 2. Bf4 {[%clk 0:02:51]}  c5 {[%clk 0:02:54]} 3. e3 {[%clk 0:02:51]}  Nc6 {[%clk 0:02:53]} 4. c3 {[%clk 0:02:51]}  e6 {[%clk 0:02:52]} 5. Nd2 {[%clk 0:02:51]}  Nf6 {[%clk 0:02:51]} 6. Ngf3 {[%clk 0:02:51]}  Bd6 {[%clk 0:02:49]} 7. Bg3 {[%clk 0:02:52]}  O-O {[%clk 0:02:48]} 8. Bd3 {[%clk 0:02:51]}  Qe7 {[%clk 0:02:45]} 9. Ne5 {[%clk 0:02:50]}  Nd7 {[%clk 0:02:44]} 10. Nxd7 {[%clk 0:02:51]}  Qxd7 {[%clk 0:02:44]} 11. f4 {[%clk 0:02:50]}  b6 {[%clk 0:02:27]} 12. O-O {[%clk 0:02:50]}  a5 {[%clk 0:02:23]} 13. Qe2 {[%clk 0:02:49]}  Bb7 {[%clk 0:02:22]} 14. Rae1 {[%clk 0:02:47]}  Rac8 {[%clk 0:02:17]} 15. Nf3 {[%clk 0:02:47]}  Qe7 {[%clk 0:01:59]} 16. Bxh7+ {[%clk 0:02:40]}  Kxh7 {[%clk 0:01:53]} 17. Ng5+ {[%clk 0:02:40]}  Kg6 {[%clk 0:01:45]} 18. Bh4 {[%clk 0:01:57]}  f5 {[%clk 0:01:26]} 19. Qf3 {[%clk 0:01:48]}  Qe8 {[%clk 0:00:47]} 20. Qg3 {[%clk 0:01:45]}  Kh6 {[%clk 0:00:47]} 21. Qh3 {[%clk 0:01:33]}  Qh5 {[%clk 0:00:39]} 22. Rf3 {[%clk 0:01:32]}  Qg4 {[%clk 0:00:31]} 23. Nxe6 {[%clk 0:01:20]}  Rce8 {[%clk 0:00:30]} 24. Bg5+ {[%clk 0:01:12]}  Kg6 {[%clk 0:00:27]} 25. Nxf8+ {[%clk 0:01:12]}  Rxf8 {[%clk 0:00:26]} 26. Rg3 {[%clk 0:01:06]}  Qxh3 {[%clk 0:00:26]} 27. gxh3 {[%clk 0:01:07]}  Kf7 {[%clk 0:00:24]} 28. Kf2 {[%clk 0:01:08]}  g6 {[%clk 0:00:24]} 29. Reg1 {[%clk 0:01:08]}  Rg8 {[%clk 0:00:24]} 30. h4 {[%clk 0:01:08]}  Ne7 {[%clk 0:00:23]} 31. h5 {[%clk 0:01:04]}  gxh5 {[%clk 0:00:23]} 32. Bxe7 {[%clk 0:01:01]}  Rxg3 {[%clk 0:00:22]} 33. Bxd6 {[%clk 0:01:01]}  Rxg1 {[%clk 0:00:21]} 34. Kxg1 {[%clk 0:01:02]}  Ke6 {[%clk 0:00:19]} 35. Bc7 {[%clk 0:01:02]}  cxd4 {[%clk 0:00:19]} 36. exd4 {[%clk 0:01:02]}  a4 {[%clk 0:00:19]} 37. Bxb6 {[%clk 0:01:02]}  Ba6 {[%clk 0:00:20]} 38. Kf2 {[%clk 0:01:01]}  Bc4 {[%clk 0:00:20]} 39. a3 {[%clk 0:01:00]}  Bb3 {[%clk 0:00:19]} 40. Kg3 {[%clk 0:01:00]}  Kf7 {[%clk 0:00:19]} 41. Kh4 {[%clk 0:01:00]}  Kg6 {[%clk 0:00:20]} 42. Kg3 {[%clk 0:01:01]}  Bc4 {[%clk 0:00:20]} 43. h4 {[%clk 0:01:01]}  Bb3 {[%clk 0:00:20]} 44. Kf2 {[%clk 0:01:02]}  Bc4 {[%clk 0:00:20]} 45. Ke3 {[%clk 0:01:03]}  Kf7 {[%clk 0:00:20]} 46. Kd2 {[%clk 0:01:03]}  Ke6 {[%clk 0:00:21]} 47. b4 {[%clk 0:00:58]}  axb3 {[%clk 0:00:20]} 48. Kc1 {[%clk 0:00:58]}  Kd7 {[%clk 0:00:20]} 49. a4 {[%clk 0:00:59]}  Kc6 {[%clk 0:00:20]} 50. Bc5 {[%clk 0:00:59]}  Kb7 {[%clk 0:00:19]} 51. Kb2 {[%clk 0:01:00]}  Ka6 {[%clk 0:00:20]} 52. Ka3 {[%clk 0:00:58]}  Ka5 {[%clk 0:00:19]} 53. Bb4+ {[%clk 0:00:59]}  Ka6 {[%clk 0:00:19]} 54. Kb2 {[%clk 0:01:00]}  Kb6 {[%clk 0:00:20]} 55. Kc1 {[%clk 0:01:00]}  Ka6 {[%clk 0:00:20]} 56. Kb2 {[%clk 0:00:59]}  Kb6 {[%clk 0:00:20]} 57. a5+ {[%clk 0:00:58]}  Ka6 {[%clk 0:00:19]} 58. Ka3 {[%clk 0:00:59]}  Kb5 {[%clk 0:00:19]} 59. Kb2 {[%clk 0:00:58]}  Ka6 {[%clk 0:00:19]} 60. Ka3 {[%clk 0:00:57]}  Kb5 {[%clk 0:00:19]} 61. Bc5 {[%clk 0:00:58]}  Kxa5 {[%clk 0:00:18]} 62. Bb4+ {[%clk 0:00:59]}  Kb5 {[%clk 0:00:18]} 63. Bc5 {[%clk 0:01:00]}  Ka6 {[%clk 0:00:19]} 64. Bb4 {[%clk 0:01:01]}  Kb5 {[%clk 0:00:19]} 65. Bc5 {[%clk 0:01:02]}  Ka5 {[%clk 0:00:19]} 66. Bb4+ {[%clk 0:01:02]}  Kb5 {[%clk 0:00:19]} 1/2-1/2


[Site "https://www.chess.com"]

[Event "Titled Tuesday Blitz June 28 Early 2022"]
[White "Johnson, Ben"]
[Black "Haas, Michael"]
[WhiteFideId "2010917"]
[BlackFideId "1629514"]
[WhiteElo "2181"]
[BlackElo "1982"]
[Result "1-0"]
[Round "07"]
[TimeControl "180+1"]
[Date "2022.06.28"]
[WhiteClock "0:01:30"]
[BlackClock "0:02:00"]

1. Nf3 {[%clk 0:03:00]}  d5 {[%clk 0:03:00]} 2. e3 {[%clk 0:03:00]}  Nf6 {[%clk 0:03:00]} 3. c4 {[%clk 0:03:01]}  e6 {[%clk 0:03:01]} 4. b3 {[%clk 0:03:01]}  Be7 {[%clk 0:03:01]} 5. Bb2 {[%clk 0:03:01]}  O-O {[%clk 0:03:01]} 6. Nc3 {[%clk 0:03:01]}  b6 {[%clk 0:03:02]} 7. cxd5 {[%clk 0:03:00]}  Nxd5 {[%clk 0:03:02]} 8. Qc2 {[%clk 0:02:56]}  Bb7 {[%clk 0:03:02]} 9. Be2 {[%clk 0:02:47]}  c5 {[%clk 0:03:00]} 10. h4 {[%clk 0:02:35]}  Nd7 {[%clk 0:02:59]} 11. Ng5 {[%clk 0:02:32]}  g6 {[%clk 0:02:52]} 12. a3 {[%clk 0:02:21]}  Bxg5 {[%clk 0:02:51]} 13. hxg5 {[%clk 0:02:20]}  Qxg5 {[%clk 0:02:52]} 14. O-O-O {[%clk 0:02:17]}  c4 {[%clk 0:02:37]} 15. Bxc4 {[%clk 0:01:58]}  Rac8 {[%clk 0:02:33]} 16. Kb1 {[%clk 0:01:41]}  a6 {[%clk 0:02:12]} 17. f4 {[%clk 0:01:36]}  Nxc3+ {[%clk 0:02:00]} 18. Qxc3 {[%clk 0:01:30]} 1-0


[Site "https://www.chess.com"]

[Event "Titled Tuesday Blitz June 28 Early 2022"]
[White "Kalogridis, Antonios"]
[Black "Donatti, Alvaro"]
[WhiteFideId "25833901"]
[BlackFideId "3000303"]
[WhiteElo "1596"]
[BlackElo "2138"]
[Result "0-1"]
[Round "07"]
[TimeControl "180+1"]
[Date "2022.06.28"]
[WhiteClock "0:00:51"]
[BlackClock "0:00:58"]

1. d4 {[%clk 0:03:00]}  Nf6 {[%clk 0:02:59]} 2. Nc3 {[%clk 0:03:01]}  d5 {[%clk 0:02:57]} 3. Bf4 {[%clk 0:03:02]}  c6 {[%clk 0:02:56]} 4. f3 {[%clk 0:03:00]}  e6 {[%clk 0:02:56]} 5. e4 {[%clk 0:02:59]}  dxe4 {[%clk 0:02:52]} 6. fxe4 {[%clk 0:02:58]}  Bb4 {[%clk 0:02:53]} 7. Qd3 {[%clk 0:02:56]}  O-O {[%clk 0:02:48]} 8. O-O-O {[%clk 0:02:54]}  Qa5 {[%clk 0:02:47]} 9. Kb1 {[%clk 0:02:45]}  Nbd7 {[%clk 0:02:44]} 10. e5 {[%clk 0:02:41]}  Nd5 {[%clk 0:02:31]} 11. Bd2 {[%clk 0:02:40]}  Bxc3 {[%clk 0:02:25]} 12. Bxc3 {[%clk 0:02:36]}  Nxc3+ {[%clk 0:02:24]} 13. Qxc3 {[%clk 0:02:36]}  Qxc3 {[%clk 0:02:24]} 14. bxc3 {[%clk 0:02:37]}  c5 {[%clk 0:02:21]} 15. Nf3 {[%clk 0:02:35]}  b6 {[%clk 0:02:18]} 16. d5 {[%clk 0:02:34]}  exd5 {[%clk 0:02:15]} 17. Rxd5 {[%clk 0:02:33]}  Nb8 {[%clk 0:02:07]} 18. Bc4 {[%clk 0:02:31]}  Nc6 {[%clk 0:02:05]} 19. Rhd1 {[%clk 0:02:20]}  Be6 {[%clk 0:02:05]} 20. Ng5 {[%clk 0:02:10]}  Na5 {[%clk 0:01:52]} 21. Nxe6 {[%clk 0:01:49]}  fxe6 {[%clk 0:01:50]} 22. R5d4 {[%clk 0:01:50]}  cxd4 {[%clk 0:01:48]} 23. Bxe6+ {[%clk 0:01:51]}  Kh8 {[%clk 0:01:47]} 24. cxd4 {[%clk 0:01:52]}  Rad8 {[%clk 0:01:40]} 25. d5 {[%clk 0:01:44]}  Nc4 {[%clk 0:01:37]} 26. Re1 {[%clk 0:01:42]}  Rfe8 {[%clk 0:01:26]} 27. Kc1 {[%clk 0:01:38]}  g6 {[%clk 0:01:25]} 28. Re4 {[%clk 0:01:35]}  Na5 {[%clk 0:01:19]} 29. c4 {[%clk 0:01:17]}  Nb7 {[%clk 0:01:17]} 30. Bf7 {[%clk 0:01:10]}  Re7 {[%clk 0:01:12]} 31. e6 {[%clk 0:01:09]}  Nd6 {[%clk 0:01:11]} 32. Bxg6 {[%clk 0:00:58]}  hxg6 {[%clk 0:01:09]} 33. Rf4 {[%clk 0:00:55]}  Kg7 {[%clk 0:01:04]} 34. h4 {[%clk 0:00:52]}  Rc8 {[%clk 0:01:02]} 35. h5 {[%clk 0:00:49]}  Rxc4+ {[%clk 0:01:02]} 36. Rxc4 {[%clk 0:00:49]}  Nxc4 {[%clk 0:01:02]} 37. g4 {[%clk 0:00:50]}  gxh5 {[%clk 0:01:00]} 38. gxh5 {[%clk 0:00:51]}  Ne3 {[%clk 0:00:58]} 0-1


[Site "https://www.chess.com"]

[Event "Titled Tuesday Blitz June 28 Early 2022"]
[White "Kanyamarala, Tarun"]
[Black "Vianello, Enrico"]
[WhiteFideId "45004714"]
[BlackFideId "810738"]
[WhiteElo "2219"]
[BlackElo "2229"]
[Result "1-0"]
[Round "07"]
[TimeControl "180+1"]
[Date "2022.06.28"]
[WhiteClock "0:02:05"]
[BlackClock "0:00:38"]

1. h3 {[%clk 0:03:00]}  d5 {[%clk 0:02:58]} 2. g3 {[%clk 0:03:01]}  c5 {[%clk 0:02:58]} 3. Bg2 {[%clk 0:03:02]}  Nc6 {[%clk 0:02:59]} 4. c4 {[%clk 0:02:59]}  Nf6 {[%clk 0:02:56]} 5. cxd5 {[%clk 0:02:59]}  Nxd5 {[%clk 0:02:56]} 6. Nf3 {[%clk 0:03:00]}  e5 {[%clk 0:02:55]} 7. O-O {[%clk 0:03:01]}  Be6 {[%clk 0:02:55]} 8. Nc3 {[%clk 0:03:01]}  Be7 {[%clk 0:02:54]} 9. d3 {[%clk 0:03:00]}  O-O {[%clk 0:02:54]} 10. Bd2 {[%clk 0:02:58]}  Rc8 {[%clk 0:02:54]} 11. Rc1 {[%clk 0:02:58]}  a6 {[%clk 0:02:53]} 12. a3 {[%clk 0:02:58]}  b5 {[%clk 0:02:52]} 13. Ne4 {[%clk 0:02:57]}  Nd4 {[%clk 0:02:51]} 14. Nxd4 {[%clk 0:02:49]}  cxd4 {[%clk 0:02:49]} 15. Rxc8 {[%clk 0:02:48]}  Qxc8 {[%clk 0:02:47]} 16. Qb1 {[%clk 0:02:49]}  Qd7 {[%clk 0:02:37]} 17. Rc1 {[%clk 0:02:49]}  Rc8 {[%clk 0:02:37]} 18. Rxc8+ {[%clk 0:02:48]}  Qxc8 {[%clk 0:02:37]} 19. Qc1 {[%clk 0:02:48]}  Qxc1+ {[%clk 0:02:37]} 20. Bxc1 {[%clk 0:02:49]}  Kf8 {[%clk 0:02:29]} 21. Nd2 {[%clk 0:02:49]}  Ke8 {[%clk 0:02:27]} 22. Nb3 {[%clk 0:02:47]}  Kd7 {[%clk 0:02:25]} 23. Bd2 {[%clk 0:02:42]}  f6 {[%clk 0:02:21]} 24. Nc1 {[%clk 0:02:36]}  Nc7 {[%clk 0:02:17]} 25. e4 {[%clk 0:02:35]}  dxe3 {[%clk 0:02:16]} 26. fxe3 {[%clk 0:02:36]}  Bd5 {[%clk 0:02:15]} 27. Bxd5 {[%clk 0:02:31]}  Nxd5 {[%clk 0:02:15]} 28. g4 {[%clk 0:02:32]}  Bc5 {[%clk 0:02:14]} 29. Kf2 {[%clk 0:02:32]}  Ke6 {[%clk 0:02:12]} 30. Kf3 {[%clk 0:02:33]}  g5 {[%clk 0:02:12]} 31. Ne2 {[%clk 0:02:31]}  Be7 {[%clk 0:02:07]} 32. Ng3 {[%clk 0:02:31]}  Nb6 {[%clk 0:02:03]} 33. Nf5 {[%clk 0:02:31]}  Bf8 {[%clk 0:02:01]} 34. Ba5 {[%clk 0:02:28]}  Na4 {[%clk 0:01:58]} 35. b4 {[%clk 0:02:27]}  Nb2 {[%clk 0:01:56]} 36. Ke4 {[%clk 0:02:26]}  Nd1 {[%clk 0:01:55]} 37. d4 {[%clk 0:02:22]}  Nf2+ {[%clk 0:01:48]} 38. Kf3 {[%clk 0:02:22]}  Nxh3 {[%clk 0:01:48]} 39. Kg2 {[%clk 0:02:22]}  Nf4+ {[%clk 0:01:37]} 40. exf4 {[%clk 0:02:21]}  gxf4 {[%clk 0:01:37]} 41. Kf3 {[%clk 0:02:20]}  h5 {[%clk 0:01:35]} 42. Ke4 {[%clk 0:02:20]}  hxg4 {[%clk 0:01:35]} 43. d5+ {[%clk 0:02:20]}  Kd7 {[%clk 0:01:34]} 44. Bb6 {[%clk 0:02:19]}  g3 {[%clk 0:01:22]} 45. Bg1 {[%clk 0:02:18]}  Kc7 {[%clk 0:01:18]} 46. Bc5 {[%clk 0:02:16]}  Bxc5 {[%clk 0:01:13]} 47. bxc5 {[%clk 0:02:17]}  g2 {[%clk 0:01:12]} 48. d6+ {[%clk 0:02:17]}  Kd7 {[%clk 0:01:10]} 49. Kd5 {[%clk 0:02:17]}  g1=Q {[%clk 0:01:10]} 50. c6+ {[%clk 0:02:17]}  Kc8 {[%clk 0:00:57]} 51. Ne7+ {[%clk 0:02:12]}  Kb8 {[%clk 0:00:54]} 52. c7+ {[%clk 0:02:12]}  Ka7 {[%clk 0:00:54]} 53. c8=Q {[%clk 0:02:09]}  Qd4+ {[%clk 0:00:53]} 54. Ke6 {[%clk 0:02:07]}  Kb6 {[%clk 0:00:38]} 55. Qc7# {[%clk 0:02:05]} 1-0


[Site "https://www.chess.com"]

[Event "Titled Tuesday Blitz June 28 Early 2022"]
[White "Kanyamarala, Trisha"]
[Black "Zochowski, Kacper"]
[WhiteFideId "45004722"]
[BlackFideId "1125494"]
[WhiteElo "2134"]
[BlackElo "2214"]
[Result "0-1"]
[Round "07"]
[TimeControl "180+1"]
[Date "2022.06.28"]
[WhiteClock "0:01:17"]
[BlackClock "0:00:55"]

1. d4 {[%clk 0:03:00]}  Nf6 {[%clk 0:02:58]} 2. c4 {[%clk 0:03:01]}  e6 {[%clk 0:02:59]} 3. Nc3 {[%clk 0:03:01]}  Bb4 {[%clk 0:02:59]} 4. Qc2 {[%clk 0:02:56]}  d5 {[%clk 0:02:58]} 5. cxd5 {[%clk 0:02:55]}  exd5 {[%clk 0:02:58]} 6. Bg5 {[%clk 0:02:56]}  c5 {[%clk 0:02:58]} 7. e3 {[%clk 0:02:55]}  h6 {[%clk 0:02:57]} 8. Bh4 {[%clk 0:02:55]}  g5 {[%clk 0:02:57]} 9. Bg3 {[%clk 0:02:54]}  Ne4 {[%clk 0:02:57]} 10. Nf3 {[%clk 0:02:45]}  Qa5 {[%clk 0:02:50]} 11. Rc1 {[%clk 0:02:40]}  Qxa2 {[%clk 0:02:41]} 12. Bb5+ {[%clk 0:02:37]}  Bd7 {[%clk 0:02:40]} 13. O-O {[%clk 0:02:33]}  Bxc3 {[%clk 0:02:38]} 14. Bxd7+ {[%clk 0:02:32]}  Nxd7 {[%clk 0:02:38]} 15. bxc3 {[%clk 0:02:25]}  Qxc2 {[%clk 0:02:33]} 16. Rxc2 {[%clk 0:02:26]}  c4 {[%clk 0:02:28]} 17. Rb1 {[%clk 0:02:21]}  b6 {[%clk 0:02:25]} 18. Rb5 {[%clk 0:02:20]}  Ndf6 {[%clk 0:02:11]} 19. Be5 {[%clk 0:02:07]}  O-O-O {[%clk 0:02:11]} 20. Nd2 {[%clk 0:02:00]}  Rhe8 {[%clk 0:01:24]} 21. Nxe4 {[%clk 0:01:58]}  Nxe4 {[%clk 0:01:22]} 22. f3 {[%clk 0:01:57]}  f6 {[%clk 0:01:09]} 23. fxe4 {[%clk 0:01:48]}  fxe5 {[%clk 0:01:06]} 24. exd5 {[%clk 0:01:47]}  exd4 {[%clk 0:01:06]} 25. cxd4 {[%clk 0:01:46]}  Rxe3 {[%clk 0:01:04]} 26. Rxc4+ {[%clk 0:01:46]}  Kb7 {[%clk 0:01:05]} 27. Rc6 {[%clk 0:01:38]}  Rf8 {[%clk 0:01:01]} 28. h3 {[%clk 0:01:35]}  Re1+ {[%clk 0:00:56]} 29. Kh2 {[%clk 0:01:27]}  h5 {[%clk 0:00:56]} 30. Rg6 {[%clk 0:01:24]}  h4 {[%clk 0:00:56]} 31. Rxg5 {[%clk 0:01:24]}  Rff1 {[%clk 0:00:56]} 32. g3 {[%clk 0:01:17]}  Rf2# {[%clk 0:00:55]} 0-1


[Site "https://www.chess.com"]